bitfinex-derivatives/quotes_ETHF0:USTF0_20250416
["timestamp","ask_amount","ask_price","bid_price","bid_amount"]
[1744834137840,1.26113,1585.7,1585.6,1.8619]
[1744834138030,3.16603,1585.7,1585.6,1.8619]
[1744834139540,3.16603,1585.7,1585.6,42.6619]
[1744834139741,1.2612,1585.6,1585.5,0.0063024]
[1744834139942,3.1893,1585.6,1585.5,1.8272024]
[1744834140149,6.3971,1585.6,1585.5,1.8272024]
[1744834140337,6.3971,1585.6,1585.5,0.0063024]
[1744834142445,5.1359,1585.6,1585.5,0.0063024]
[1744834142847,6.3971,1585.6,1585.5,0.0063024]
[1744834143045,6.3971,1585.6,1585.5,1.8778024]
[1744834143735,6.3971,1585.6,1585.5,0.0063024]
[1744834144548,6.3971,1585.6,1585.5,1.9745024]
[1744834145943,3.2078,1585.6,1585.5,3.2357824]
[1744834146140,5.08675358,1586.1,1585.6,3.15291]
[1744834146341,0.00945358,1586.1,1586.0,1.26088]
[1744834147649,0.00945358,1586.1,1586.0,12.11688]
[1744834148045,0.00945358,1586.1,1586.0,15.77218]
[1744834148444,98.563,1586.8,1586.2,3.15175]
[1744834148650,1.26043,1586.6,1586.3,1.8498]
[1744834148948,3.06214145,1586.7,1586.4,1.26053]
[1744834149148,3.0529029,1586.7,1586.4,40.8]
[1744834149448,3.0528429,1586.7,1586.5,1.8498]
[1744834149653,3.06229648,1586.7,1586.5,3.11025]
[1744834149950,1.80197648,1586.7,1586.5,1.8498]
[1744834150551,1.80197648,1586.7,1586.5,3.11022]
[1744834150749,3.06234648,1586.7,1586.5,3.11022]
[1744834150950,1.2604,1586.6,1586.5,1.8498]
[1744834151345,0.00945358,1586.7,1586.5,1.8498]
[1744834151654,0.00945358,1586.7,1586.4,40.80945358]
[1744834151846,1.26048,1586.5,1586.4,40.80945358]
[1744834152151,1.26048,1586.5,1586.4,0.00945358]
[1744834152350,3.13408,1586.5,1586.4,0.00945358]
[1744834152553,1.8736,1586.5,1586.4,0.00945358]
[1744834152754,3.13408,1586.5,1586.4,1.92835358]
[1744834152939,3.13408,1586.5,1586.4,40.80945358]
[1744834153843,3.13408,1586.5,1586.4,0.00945358]
[1744834155552,1.8736,1586.5,1586.4,0.00945358]
[1744834155751,1.8736,1586.5,1586.4,1.90815358]
[1744834155944,3.13408,1586.5,1586.4,1.90815358]
[1744834156546,3.13408,1586.5,1586.4,0.00945358]
[1744834156946,8.13408,1586.5,1586.4,0.00945358]
[1744834157254,1.26072,1586.2,1586.0,5.09192]
[1744834157451,4.46852,1586.2,1586.0,5.09192]
[1744834157753,14.1448,1586.2,1585.5,5.856]
[1744834157949,1.26128,1585.5,1585.2,3.7201]
[1744834158143,3.2078,1585.3,1585.2,0.0063024]
[1744834158348,4.46923,1585.3,1585.2,0.0063024]
[1744834159152,3.2078,1585.3,1585.2,0.0063024]
[1744834159350,4.46923,1585.3,1585.2,0.0063024]
[1744834159551,6.31833,1585.3,1585.2,0.0063024]
[1744834159855,1.8491,1585.3,1585.2,0.0063024]
[1744834160056,3.11053,1585.3,1585.2,0.0063024]
[1744834160258,6.31833,1585.3,1585.2,1.9452024]
[1744834160454,3.11053,1585.3,1585.2,1.9452024]
[1744834160957,6.31833,1585.3,1585.2,1.9452024]
[1744834161254,11.31833,1585.3,1585.2,0.0063024]
[1744834161452,17.25633,1585.3,1585.2,0.0063024]
[1744834161649,12.25633,1585.3,1585.2,0.0063024]
[1744834162050,10.9949,1585.3,1585.2,0.0063024]
[1744834162246,5.0569,1585.3,1585.2,0.0063024]
[1744834162451,5.0569,1585.3,1585.2,1.9452024]
[1744834162856,0.00945358,1585.5,1585.3,1.26143]
[1744834163055,3.21725358,1585.5,1585.3,1.26143]
[1744834163260,5.02585358,1585.5,1585.2,0.0063024]
[1744834163456,3.2078,1585.3,1585.2,0.0063024]
[1744834163956,4.46923,1585.3,1585.2,0.0063024]
[1744834164761,15.38623,1585.3,1585.2,0.0063024]
[1744834165066,1.26159,1585.1,1585.0,0.017]
[1744834165269,4.46939,1585.1,1585.0,0.017]
[1744834165766,6.27799,1585.1,1585.0,0.017]
[1744834167269,8.09369,1585.1,1585.0,0.017]
[1744834167775,6.27799,1585.1,1585.0,0.017]
[1744834168069,3.2078,1585.3,1585.0,0.017]
[1744834168265,1.26159,1585.1,1585.0,0.017]
[1744834168570,1.26157,1585.2,1585.0,1.9048]
[1744834168760,1.7966,1585.2,1585.0,1.9048]
[1744834169362,3.05817,1585.2,1585.0,1.9048]
[1744834169559,1.26159,1585.1,1585.0,1.9058]
[1744834169764,4.46939,1585.1,1585.0,1.9058]
[1744834170373,4.46939,1585.1,1585.0,1.9068]
[1744834171174,3.05816,1585.2,1585.0,1.9068]
[1744834171373,3.05812,1585.2,1585.0,3.16844]
[1744834171673,1.26159,1585.1,1585.0,1.9078]
[1744834172766,4.46939,1585.1,1585.0,1.9078]
[1744834172967,4.46939,1585.1,1585.0,0.021]
[1744834174371,13.21719,1585.1,1585.0,0.021]
[1744834174576,1.26207,1584.5,1584.4,1.9354]
[1744834174871,1.27150358,1584.6,1584.5,1.8106]
[1744834175081,1.27150358,1584.6,1584.5,42.6106]
[1744834175472,0.00945358,1584.6,1584.5,42.6106]
[1744834175675,1.27144358,1584.6,1584.5,42.6106]
[1744834175875,0.00945358,1584.6,1584.5,43.87267]
[1744834176075,0.00945358,1584.6,1584.5,48.87267]
[1744834176581,1.26167,1585.1,1584.9,1.26174]
[1744834176876,1.26175,1584.9,1584.7,1.26187]
[1744834177181,1.26191,1584.7,1584.5,47.98101]
[1744834177375,1.26187,1584.8,1584.6,1.26199]
[1744834177876,1.26191,1584.7,1584.5,47.99047358]
[1744834178076,1.26191,1584.7,1584.5,47.99044358]
[1744834178276,1.26198,1584.7,1584.5,47.99044358]
[1744834178480,1.26199,1584.6,1584.5,46.72845358]
[1744834179382,4.46979,1584.6,1584.5,40.80945358]
[1744834179575,3.2078,1584.6,1584.5,40.80945358]
[1744834179772,4.46979,1584.6,1584.5,40.80945358]
[1744834179973,4.46979,1584.6,1584.5,42.07152358]
[1744834180182,1.26188,1584.8,1584.6,1.26194]
[1744834180381,1.26191,1584.7,1584.5,40.80945358]
[1744834180584,1.26186,1584.8,1584.6,1.26193]
[1744834180983,3.21725358,1584.9,1584.5,40.80945358]
[1744834181178,0.00945358,1584.9,1584.8,1.26183]
[1744834181877,1.27126358,1584.9,1584.7,3.1133]
[1744834182387,0.00945358,1584.9,1584.8,1.26183]
[1744834182781,0.00945358,1584.9,1584.8,3.17853]
[1744834184686,0.00945358,1584.9,1584.8,8.17853]
[1744834185092,1.27120358,1584.9,1584.8,8.17853]
[1744834185489,0.00945358,1584.9,1584.8,3.17853]
[1744834186596,1.27120358,1584.9,1584.8,3.17853]
[1744834186793,1.27120358,1584.9,1584.8,1.9167]
[1744834187200,3.06540358,1584.9,1584.8,1.9167]
[1744834187495,3.06540358,1584.9,1584.8,3.17853]
[1744834188897,1.27120358,1584.9,1584.8,3.17853]
[1744834189096,0.00945358,1584.9,1584.8,3.17853]
[1744834189402,0.00945358,1584.9,1584.8,3.17953]
[1744834189602,0.00945358,1584.9,1584.8,5.04223]
[1744834190193,3.15323,1585.5,1584.8,5.04223]
[1744834190194,10.38923,1585.4,1585.2,1.26151]
[1744834190402,11.0206,1585.4,1585.2,1.26145]
[1744834190900,3.2078,1585.9,1585.1,13.7154]
[1744834191196,1.9434,1586.0,1585.3,3.2078]
[1744834191400,7.17984,1586.1,1585.7,3.15271]
[1744834191597,7.17984,1586.1,1585.9,1.26089]
[1744834191902,1.26088,1586.0,1585.9,40.8]
[1744834192103,3.15368,1586.0,1585.9,40.8]
[1744834192601,1.26096,1585.9,1585.8,3.7884]
[1744834192803,3.15376,1585.9,1585.8,3.7884]
[1744834193000,1.8928,1585.9,1585.8,5.04944]
[1744834193202,1.26094,1586.0,1585.8,45.84944]
[1744834193403,1.26094,1586.0,1585.8,45.84939]
[1744834193404,3.15344,1586.0,1585.8,45.84939]
[1744834193698,1.26096,1585.9,1585.8,45.84939]
[1744834194002,1.26096,1585.9,1585.8,44.5884]
[1744834195701,3.15343,1586.0,1585.8,44.5884]
[1744834196201,1.8925,1586.0,1585.8,44.5884]
[1744834196405,1.26096,1585.9,1585.8,44.5884]
[1744834196796,14.10303503,1586.1,1586.0,0.001]
[1744834196995,8.19327358,1586.1,1586.0,0.001]
[1744834197196,13.19327358,1586.1,1586.0,0.001]
[1744834197396,13.19327358,1586.1,1586.0,0.002]
[1744834198205,8.19327358,1586.1,1586.0,0.002]
[1744834198607,8.19327358,1586.1,1586.0,0.003]
[1744834199409,8.19327358,1586.1,1586.0,0.004]
[1744834200107,13.19327358,1586.1,1586.0,0.004]
[1744834200806,19.08827358,1586.1,1586.0,0.005]
[1744834201003,14.08827358,1586.1,1586.0,0.005]
[1744834201201,19.08827358,1586.1,1586.0,0.005]
[1744834201604,14.08827358,1586.1,1586.0,0.005]
[1744834202008,14.08827358,1586.1,1586.0,0.006]
[1744834202305,3.21725358,1586.1,1586.0,1.26688]
[1744834202507,3.7201,1586.5,1586.4,1.26056]
[1744834202705,1.26042,1586.6,1586.4,1.26056]
[1744834202896,1.26042,1586.6,1586.5,1.8519]
[1744834203101,4.46822,1586.6,1586.5,1.8519]
[1744834203303,1.26042,1586.6,1586.5,1.8519]
[1744834203505,3.15263358,1586.7,1586.5,1.8519]
[1744834203702,1.2604,1586.6,1586.5,1.8519]
[1744834203905,3.1432,1586.6,1586.5,1.8519]
[1744834204311,6.351,1586.6,1586.5,1.8519]
[1744834204610,5.0906,1586.6,1586.4,0.00945358]
[1744834204806,3.14322,1586.6,1586.4,1.27000358]
[1744834205003,1.26980358,1586.7,1586.5,3.11238]
[1744834205200,0.00945358,1586.7,1586.6,3.1123]
[1744834205404,0.00945358,1586.7,1586.6,1.8519]
[1744834205603,1.26977358,1586.7,1586.6,1.8519]
[1744834205905,0.00945358,1586.7,1586.6,3.1123]
[1744834206210,0.00945358,1586.7,1586.6,1.8519]
[1744834206807,0.00945358,1586.7,1586.6,3.1123]
[1744834207811,0.00945358,1586.7,1586.6,9.0063]
[1744834208511,0.00945358,1586.7,1586.6,7.7459]
[1744834208813,0.00945358,1586.7,1586.6,9.0063]
[1744834209513,0.00945358,1586.7,1586.6,14.0063]
[1744834209815,1.26005,1587.1,1586.9,1.26015]
[1744834210116,1.26005,1587.1,1587.0,42.685]
[1744834210408,1.26,1587.1,1587.0,42.685]
[1744834210805,1.26944358,1587.2,1587.0,42.685]
[1744834211009,0.00945358,1587.2,1587.1,1.885]
[1744834211307,6.35665,1587.7,1587.1,3.7156]
[1744834211513,1.25989,1587.3,1587.2,1.9092]
[1744834212113,3.15483,1587.4,1587.2,1.9092]
[1744834212315,1.90445358,1587.4,1587.2,1.9092]
[1744834212814,3.16428358,1587.4,1587.2,3.16911]
[1744834213315,1.25985,1587.3,1587.2,1.9092]
[1744834215014,4.46765,1587.3,1587.2,1.9092]
[1744834215803,3.14982,1587.2,1586.8,5.856]
[1744834216003,4.46796,1586.9,1586.8,5.856]
[1744834216208,1.2604,1586.6,1586.5,1.9651]
[1744834216403,4.4682,1586.6,1586.5,40.8]
[1744834217016,1.2604,1586.6,1586.5,40.8]
[1744834217217,1.2604,1586.6,1586.4,1.96885358]
[1744834217218,1.26061,1586.5,1586.4,1.96885358]
[1744834217416,1.26061,1586.5,1586.4,1.95961503]
[1744834217719,1.26061,1586.5,1586.4,0.00945358]
[1744834217915,3.11901,1586.5,1586.4,0.00945358]
[1744834220323,1.8584,1586.5,1586.4,0.00945358]
[1744834220518,7.0217,1586.8,1586.5,1.26055]
[1744834220711,8.96076145,1586.8,1586.6,1.8988]
[1744834221012,1.26061,1586.5,1586.4,0.00945358]
[1744834221218,3.2078,1586.5,1586.4,1.89901503]
[1744834221417,1.26059,1586.6,1586.4,1.89901503]
[1744834221619,3.2078,1586.5,1586.4,1.89901503]
[1744834221814,4.46841,1586.5,1586.4,1.88977648]
[1744834222526,3.20888,1586.6,1586.4,3.15046648]
[1744834222718,1.25137145,1586.5,1586.4,1.88977648]
[1744834222918,4.45917145,1586.5,1586.4,1.88053793]
[1744834223222,3.2078,1586.5,1586.4,1.88053793]
[1744834223426,4.46841,1586.5,1586.4,1.88053793]
[1744834225421,1.9483,1586.6,1586.4,1.88053793]
[1744834225723,3.2078,1586.7,1586.4,1.88053793]
[1744834225926,4.46827,1586.7,1586.4,1.88053793]
[1744834226119,4.46827,1586.7,1586.5,1.26058]
[1744834226319,4.46827,1586.7,1586.6,1.9352]
[1744834228936,6.27487,1586.7,1586.6,1.9352]
[1744834229238,6.27487,1586.7,1586.4,1.26066]
[1744834229239,1.26062,1586.5,1586.3,3.24155358]
[1744834229537,4.47784358,1586.6,1586.4,1.26066]
[1744834229739,1.26061,1586.5,1586.4,1.26066]
[1744834229934,1.26061,1586.5,1586.4,1.25142145]
[1744834230238,6.31524358,1586.6,1586.4,1.25142145]
[1744834230430,6.30600503,1586.6,1586.4,1.25142145]
[1744834231335,1.84685358,1586.6,1586.3,1.97161503]
[1744834231530,0.00945358,1586.6,1586.5,1.26061]
[1744834231731,0.00021503,1586.6,1586.5,1.26061]
[1744834232441,0.00021503,1586.6,1586.4,5.868]
[1744834232633,1.26061,1586.5,1586.4,7.12866]
[1744834232833,1.26069,1586.4,1586.3,3.22310648]
[1744834233033,4.46849,1586.4,1586.3,3.22310648]
[1744834233233,1.26069,1586.4,1586.3,1.27018358]
[1744834233831,1.26069,1586.4,1586.3,1.27015358]
[1744834234742,3.16106,1586.5,1586.4,1.26069]
[1744834235941,1.26069,1586.4,1586.3,1.27016358]
[1744834236238,4.46849,1586.4,1586.3,1.27016358]
[1744834236435,4.46849,1586.4,1586.3,0.00945358]
[1744834236641,1.26084,1586.2,1586.1,5.856]
[1744834236842,3.15093,1586.3,1586.1,1.26092]
[1744834237141,1.8901,1586.2,1586.1,1.26092]
[1744834237936,3.15094,1586.2,1586.1,1.26092]
[1744834238135,5.034,1586.4,1586.0,3.17691358]
[1744834238342,1.8891,1586.4,1586.3,1.26077]
[1744834238746,1.8891,1586.4,1586.2,1.2608]
[1744834239040,3.14982,1586.4,1586.3,1.26077]
[1744834239341,1.8891,1586.4,1586.3,1.26077]
[1744834242842,3.20801503,1586.6,1586.5,1.26061]
[1744834242843,4.46860503,1586.6,1586.5,1.26061]
[1744834243144,1.26061,1586.5,1586.4,1.26063]
[1744834243338,1.26061,1586.5,1586.4,1.25139145]
[1744834243638,1.26061,1586.5,1586.4,42.05139145]
[1744834244244,4.46881006,1586.6,1586.4,42.05139145]
[1744834244543,4.45957151,1586.6,1586.5,3.08611]
[1744834244745,4.45957151,1586.6,1586.5,1.8255]
[1744834244932,1.26061,1586.5,1586.4,40.8]
[1744834245134,3.12861,1586.5,1586.3,3.16023]
[1744834245941,1.868,1586.5,1586.4,1.26069]
[1744834246136,1.868,1586.5,1586.4,43.96019]
[1744834246338,3.19899151,1586.6,1586.5,1.26061]
[1744834246540,6.31828296,1586.6,1586.5,3.16011]
[1744834246944,6.31828296,1586.6,1586.5,1.8995]
[1744834247338,6.31828296,1586.6,1586.4,42.06065]
[1744834247537,1.868,1586.5,1586.4,42.06065]
[1744834247843,0.00923855,1586.4,1586.3,1.26072]
[1744834248142,3.2078,1586.4,1586.3,42.05148145]
[1744834248342,5.0037,1586.4,1586.3,42.05148145]
[1744834249545,0.00945358,1586.6,1586.5,1.26061]
[1744834249849,1.79611503,1586.6,1586.5,1.26061]
[1744834250235,0.00021503,1586.6,1586.5,6.26061]
[1744834250438,0.00021503,1586.6,1586.5,20.85511]
[1744834250745,1.7959,1587.2,1587.1,1.26013]
[1744834251047,1.26013,1587.1,1587.0,0.001]
[1744834251340,4.46793,1587.1,1587.0,0.001]
[1744834251947,4.46793,1587.1,1587.0,0.002]
[1744834253048,6.26893,1587.1,1587.0,0.002]
[1744834254042,6.26893,1587.1,1587.0,0.003]
[1744834255345,6.26893,1587.1,1587.0,0.004]
[1744834256148,6.26893,1587.1,1587.0,0.005]
[1744834257141,5.0088,1587.1,1587.0,0.005]
[1744834257442,3.2078,1587.1,1587.0,3.12081]
[1744834257642,1.80535358,1587.2,1587.1,1.26013]
[1744834257848,3.06540358,1587.2,1587.1,3.11473]
[1744834258049,1.80535358,1587.2,1587.1,3.11473]
[1744834259041,1.80535358,1587.2,1587.1,1.8546]
[1744834259247,3.06540358,1587.2,1587.1,1.8546]
[1744834259552,1.26013,1587.1,1587.0,0.008]
[1744834259755,6.27263,1587.1,1587.0,0.008]
[1744834260055,6.27263,1587.1,1587.0,0.009]
[1744834260244,5.0125,1587.1,1587.0,1.26921]
[1744834260448,0.00945358,1587.2,1587.1,1.26013]
[1744834260848,0.00945358,1587.2,1587.1,9.96183]
[1744834261145,0.00945358,1587.2,1587.1,11.88333]
[1744834261767,0.00945358,1587.2,1587.1,17.72733]
[1744834262053,6.43587,1587.7,1587.5,1.25981]
[1744834262358,14.57473519,1588.0,1587.9,1.25949]
[1744834262650,14.57473519,1588.0,1587.9,47.91549]
[1744834262956,1.25942,1588.0,1587.9,46.656]
[1744834263546,3.09362,1588.0,1587.9,48.5948]
[1744834264358,1.8342,1588.0,1587.9,49.85429]
[1744834264557,1.8342,1588.0,1587.9,48.5948]
[1744834264857,1.25949,1587.9,1587.8,0.00945358]
[1744834265057,8.22409,1587.9,1587.8,0.00945358]
[1744834265360,5.01629,1587.9,1587.8,40.80945358]
[1744834265561,8.22409,1587.9,1587.8,40.80945358]
[1744834266560,6.9646,1587.9,1587.8,40.80945358]
[1744834266751,3.7568,1587.9,1587.8,42.06902358]
[1744834266953,3.7568,1587.9,1587.8,43.92462358]
[1744834266954,5.6895,1587.9,1587.8,43.92462358]
[1744834267152,3.7138,1587.9,1587.8,42.66505358]
[1744834267452,4.47659358,1588.1,1588.0,0.001]
[1744834267854,4.47659358,1588.1,1588.0,1.8566]
[1744834268051,6.40929358,1588.1,1588.0,1.8566]
[1744834268255,6.40929358,1588.1,1588.0,3.11602]
[1744834268256,1.94215358,1588.1,1588.0,3.11602]
[1744834268862,0.00945358,1588.1,1588.0,3.11602]
[1744834269463,3.21725358,1588.1,1588.0,1.8566]
[1744834269663,4.47659358,1588.1,1588.0,1.8566]
[1744834270064,4.47659358,1588.1,1588.0,0.001]
[1744834270458,6.27559358,1588.1,1588.0,0.001]
[1744834272755,0.00945358,1588.1,1588.0,1.26042]
[1744834273259,0.00945358,1588.1,1588.0,3.21022]
[1744834274159,1.26879358,1588.1,1588.0,3.21022]
[1744834274459,1.26879358,1588.1,1588.0,1.9508]
[1744834274663,1.26879358,1588.1,1588.0,0.001]
[1744834274860,3.19669358,1588.1,1588.0,1.26042]
[1744834275056,1.93735358,1588.1,1588.0,3.13592]
[1744834275658,0.00945358,1588.1,1588.0,3.13592]
[1744834276067,1.26879358,1588.1,1588.0,3.13592]
[1744834276265,0.00945358,1588.1,1588.0,3.13592]
[1744834277869,0.00945358,1588.1,1588.0,8.99192]
[1744834278972,0.00945358,1588.1,1588.0,7.7325]
[1744834279169,1.26879358,1588.1,1588.0,0.001]
[1744834279477,5.04949358,1588.1,1588.0,0.001]
[1744834279772,1.25949,1587.9,1587.8,40.80945358]
[1744834279971,4.46729,1587.9,1587.8,40.80945358]
[1744834280161,3.2078,1587.9,1587.8,42.06902358]
[1744834280366,3.21725358,1588.1,1588.0,1.25942]
[1744834280765,4.47664358,1588.1,1587.9,43.88823]
[1744834280962,1.25942,1588.0,1587.9,40.8]
[1744834281169,1.25949,1587.9,1587.8,0.00945358]
[1744834281372,4.46729,1587.9,1587.8,0.00945358]
[1744834281568,8.26809,1587.9,1587.8,40.80945358]
[1744834281972,8.26809,1587.9,1587.8,0.00945358]
[1744834282370,5.06029,1587.9,1587.8,0.00945358]
[1744834282576,8.26809,1587.9,1587.8,0.00945358]
[1744834284681,5.06029,1587.9,1587.8,0.00945358]
[1744834284886,8.26809,1587.9,1587.8,0.00945358]
[1744834286981,8.26809,1587.9,1587.8,1.26902358]
[1744834287285,5.06029,1587.9,1587.8,0.00945358]
[1744834287490,1.25945,1588.0,1587.8,1.26896358]
[1744834287683,1.25949,1587.9,1587.8,1.90485358]
[1744834288488,4.46729,1587.9,1587.8,0.00945358]
[1744834290388,1.25981,1587.5,1587.4,7.7514]
[1744834290587,1.25989,1587.4,1587.3,40.8]
[1744834290891,1.26013,1587.1,1587.0,0.016]
[1744834291079,1.26013,1587.1,1587.0,1.9584]
[1744834291277,1.26013,1587.1,1587.0,42.7584]
[1744834291789,1.26013,1587.1,1587.0,1.9584]
[1744834292090,4.46793,1587.1,1587.0,0.016]
[1744834292981,9.46793,1587.1,1587.0,0.016]
[1744834293187,8.2078,1587.1,1586.4,8.91275]
[1744834293394,1.26053,1586.6,1586.5,40.8]
[1744834293694,1.26053,1586.6,1586.5,42.7424]
[1744834293893,3.14083,1586.6,1586.5,1.9424]
[1744834294093,1.26069,1586.4,1586.3,8.09699297]
[1744834294290,1.26069,1586.4,1586.3,8.08775442]
[1744834294895,3.14099,1586.4,1586.3,8.08775442]
[1744834295398,3.15117,1586.7,1586.4,1.26069]
[1744834295399,3.2078,1586.7,1586.4,1.26069]
[1744834295687,6.33938145,1586.7,1586.4,3.10439]
[1744834295895,1.26055,1586.6,1586.4,3.10439]
[1744834296096,3.14085,1586.6,1586.4,3.10439]
[1744834296294,1.8803,1586.6,1586.5,1.26061]
[1744834296489,1.8803,1586.6,1586.5,3.10431]
[1744834296690,1.8803,1586.6,1586.5,1.8437]
[1744834297196,3.14083,1586.6,1586.5,1.8437]
[1744834297393,1.8803,1586.6,1586.5,3.10431]
[1744834297591,1.8803,1586.6,1586.5,1.8437]
[1744834297893,1.8803,1586.6,1586.3,8.08775442]
[1744834298099,3.2078,1586.5,1586.3,11.23713587]
[1744834298289,3.5688,1586.8,1586.6,1.26053]
[1744834298597,4.46827,1586.7,1586.5,1.26056]
[1744834298789,5.0529,1586.7,1586.6,1.8979]
[1744834301600,5.0529,1586.7,1586.6,3.15843]
[1744834301800,3.2078,1586.7,1586.6,3.15843]
[1744834302393,1.9109,1587.0,1586.6,10.04922]
[1744834302593,1.9109,1587.0,1586.9,1.26029]
[1744834302893,3.17113,1587.0,1586.8,1.26031]
[1744834303097,3.17113,1587.0,1586.9,1.8705]
[1744834303598,1.9109,1587.0,1586.9,3.13079]
[1744834304795,3.17111,1587.0,1586.9,1.8705]
[1744834305098,1.26041,1586.8,1586.6,1.26051]
[1744834305301,4.46821,1586.8,1586.7,1.8705]
[1744834305694,1.26052,1586.7,1586.5,7.11654]
[1744834306000,3.12629,1586.7,1586.5,7.11658]
[1744834306302,3.12625,1586.7,1586.6,1.26053]
[1744834306693,1.8658,1586.7,1586.5,1.26054]
[1744834306901,1.26069,1586.4,1586.3,5.856]
[1744834307198,1.27000855,1586.3,1586.2,0.00945358]
[1744834307408,3.13580855,1586.3,1586.2,0.00945358]
[1744834307601,1.26092,1586.1,1586.0,0.039]
[1744834307897,10.28972,1586.1,1586.0,0.039]
[1744834308096,17.15552,1586.1,1586.0,0.02976145]
[1744834308606,12.15552,1586.1,1586.0,0.02976145]
[1744834310000,8.94772,1586.1,1586.0,0.02976145]
[1744834310201,10.8946,1586.1,1586.0,0.02976145]
[1744834310500,1.27033358,1586.2,1586.0,3.20146145]
[1744834310702,4.46872,1586.1,1586.0,1.94046145]
[1744834311008,3.07492,1586.1,1586.0,1.94046145]
[1744834311604,6.28272,1586.1,1586.0,0.02976145]
[1744834313201,12.10572,1586.1,1586.0,0.02976145]
[1744834314397,5.0218,1586.1,1586.0,0.02976145]
[1744834314599,3.2078,1586.1,1586.0,1.29076145]
[1744834314796,0.00945358,1586.2,1586.1,1.26092]
[1744834315210,0.00945358,1586.2,1586.1,6.26092]
[1744834316404,1.27029358,1586.2,1586.1,5.0]
[1744834316608,1.27029358,1586.2,1586.0,12.35702145]
[1744834316810,1.27029358,1586.2,1586.0,12.35802145]
[1744834317010,0.00945358,1586.2,1586.1,1.26092]
[1744834317915,1.27029358,1586.2,1586.0,12.35799145]
[1744834318100,1.27029358,1586.2,1586.0,11.09806145]
[1744834318297,1.27029358,1586.2,1586.0,12.35901145]
[1744834318504,1.27029358,1586.2,1586.0,18.21501145]
[1744834319013,1.26092,1586.1,1586.0,9.37296145]
[1744834319212,3.11662,1586.1,1586.0,9.37296145]
[1744834319513,3.11662,1586.1,1586.0,9.37396145]
[1744834320612,0.00945358,1586.2,1586.1,1.26092]
[1744834321015,0.00945358,1586.2,1586.1,13.94222]
[1744834322215,1.26044,1586.8,1586.3,3.15189]
[1744834322411,3.2078,1587.2,1586.5,6.35932]
[1744834322606,3.2078,1587.2,1586.9,1.26024]
[1744834322916,1.753,1587.5,1587.0,42.6756]
[1744834323112,3.2078,1587.6,1587.0,42.6756]
[1744834323113,4.46757,1587.6,1587.4,1.25989]
[1744834323309,1.25977,1587.6,1587.5,1.8756]
[1744834323811,1.25984,1587.5,1587.3,1.25991]
[1744834324015,4.9925,1587.5,1587.2,1.8784]
[1744834324318,1.25997,1587.3,1587.2,1.8784]
[1744834326515,4.46777,1587.3,1587.2,1.8784]
[1744834327415,1.25991,1587.4,1587.2,3.13842]
[1744834327611,4.9925,1587.5,1587.2,3.13842]
[1744834327612,1.25997,1587.3,1587.2,1.8784]
[1744834327818,1.26005,1587.2,1587.1,0.00945358]
[1744834328108,2.99775,1587.2,1587.1,0.00945358]
[1744834328313,1.26,1587.3,1587.1,3.15228358]
[1744834328504,1.26,1587.3,1587.2,1.8827]
[1744834329616,4.4678,1587.3,1587.2,1.8827]
[1744834330007,1.26005,1587.2,1587.1,1.89215358]
[1744834330209,3.13895,1587.2,1587.1,1.89215358]
[1744834330922,3.13895,1587.2,1587.1,0.00945358]
[1744834332810,8.13895,1587.2,1587.1,0.00945358]
[1744834333207,1.26005,1587.2,1587.1,0.00945358]
[1744834333420,1.26005,1587.2,1587.1,1.88485358]
[1744834333816,2.99875,1587.2,1587.1,1.88485358]
[1744834334015,2.99875,1587.2,1587.1,0.00945358]
[1744834335021,2.99875,1587.2,1587.1,1.88485358]
[1744834341132,1.26005,1587.2,1587.1,1.88485358]
[1744834342431,1.26005,1587.2,1587.1,3.14498358]
[1744834342631,1.26005,1587.2,1587.1,1.88485358]
[1744834343337,3.04545,1587.2,1587.1,1.88485358]
[1744834345540,3.04545,1587.2,1587.1,0.00945358]
[1744834347042,1.7854,1587.2,1587.1,1.26958358]
[1744834347242,4.46782,1587.3,1587.2,1.26005]
[1744834347445,4.46782,1587.3,1587.2,3.15655]
[1744834347744,4.46782,1587.3,1587.2,1.8965]
[1744834347941,6.20002,1587.3,1587.2,1.8965]
[1744834348140,6.20002,1587.3,1587.2,3.15655]
[1744834348343,6.20002,1587.3,1587.2,1.8965]
[1744834348543,4.46782,1587.3,1587.2,3.15655]
[1744834349243,3.2078,1587.3,1587.2,3.15655]
[1744834349640,0.00945358,1587.7,1587.6,1.25973]
[1744834350046,0.00945358,1587.7,1587.6,6.25973]
[1744834350347,1.25934,1588.1,1587.9,1.25942]
[1744834350549,1.25934,1588.1,1588.0,1.7534]
[1744834350749,3.02704,1588.1,1588.0,1.7534]
[1744834351046,3.02704,1588.1,1588.0,42.5534]
[1744834351345,1.25973,1587.6,1587.5,1.8417]
[1744834351647,1.25973,1587.6,1587.5,1.8518]
[1744834351947,1.25973,1587.6,1587.5,42.6518]
[1744834352244,2.99373,1587.6,1587.5,42.6518]
[1744834352638,2.99373,1587.6,1587.5,1.8518]
[1744834353151,1.25973,1587.6,1587.5,1.8518]
[1744834353645,2.99373,1587.6,1587.5,1.8518]
[1744834354037,1.25981,1587.5,1587.4,40.8]
[1744834354236,6.20161,1587.5,1587.4,40.8]
[1744834354951,1.25989,1587.4,1587.3,1.8518]
[1744834355144,3.11289,1587.4,1587.3,1.8518]
[1744834355650,3.11289,1587.4,1587.3,42.6518]
[1744834355849,1.853,1587.4,1587.1,1.77215358]
[1744834356044,4.46785,1587.3,1587.2,1.905]
[1744834356351,4.46785,1587.3,1587.2,42.705]
[1744834356751,3.2078,1587.3,1587.2,43.96505]
[1744834357748,4.46777,1587.3,1587.2,42.705]
[1744834358255,3.2078,1587.3,1587.2,42.705]
[1744834358448,3.2078,1587.3,1587.2,43.96505]
[1744834358754,4.46777,1587.3,1587.2,42.705]